Workbook

Sheet Übersicht
A1: EINNAHMENÜBERSICHT
A2: 2016
A3: Monat | G3: Netto | H3: MwSt. | I3: Summe
A4: Januar | G4: =Januar!G23 -> 123.00 € | H4: =Januar!H23 -> 23.37 € | I4: =Januar!I23 -> 146.37 €
A5: Februar | G5: =Februar!G23 -> 100.00 € | H5: =Februar!H23 -> 19.00 € | I5: =Februar!I23 -> 119.00 €
A6: März | G6: =März!G23 -> 123.00 € | H6: =März!H23 -> 23.37 € | I6: =März!I23 -> 146.37 €
A7: April | G7: =April!G23 -> 100.00 € | H7: =April!H23 -> 19.00 € | I7: =April!I23 -> 119.00 €
A8: Mai | G8: =Mai!G23 -> 123.00 € | H8: =Mai!H23 -> 23.37 € | I8: =Mai!I23 -> 146.37 €
A9: Juni | G9: =Juni!G23 -> 200.00 € | H9: =Juni!H23 -> 38.00 € | I9: =Juni!I23 -> 238.00 €
A10: Juli | G10: =Juli!G23 -> 123.00 € | H10: =Juli!H23 -> 23.37 € | I10: =Juli!I23 -> 146.37 €
A11: August | G11: =August!G23 -> 400.00 € | H11: =August!H23 -> 76.00 € | I11: =August!I23 -> 476.00 €
A12: September | G12: =September!G23 -> 123.00 € | H12: =September!H23 -> 23.37 € | I12: =September!I23 -> 146.37 €
A13: Oktober | G13: =Oktober!G23 -> 100.00 € | H13: =Oktober!H23 -> 19.00 € | I13: =Oktober!I23 -> 119.00 €
A14: November | G14: =November!G23 -> 123.00 € | H14: =November!H23 -> 23.37 € | I14: =November!I23 -> 146.37 €
A15: Dezember | G15: =Dezember!G23 -> 200.00 € | H15: =Dezember!H23 -> 38.00 € | I15: =Dezember!I23 -> 238.00 €
A16: Summe: | G16: =SUM(G4:G15) -> 1,838.00 € | H16: =SUM(H4:H15) -> 349.22 € | I16: =SUM(I4:I15) -> 2,187.22 €

Sheet Januar
A1: EINNAHMENÜBERSICHT
A2: 2016 | F2: JANUAR
A3: Nr. | B3: Datum | C3: Beschreibung | G3: Netto | H3: MwSt. | I3: Summe
A4: 1 | B4: 2016-01-01 | C4: Artikel Z / Rechnung XY | G4: 123.00 € | H4: 23.37 € | I4: =H4+G4 -> 146.37 €
A23: Summe: | G23: =SUM(G4:G22) -> 123.00 € | H23: =SUM(H4:H22) -> 23.37 € | I23: =SUM(I4:I22) -> 146.37 €

Sheet Februar
A1: EINNAHMENÜBERSICHT
A2: 2016 | F2: FEBRUAR
A3: Nr. | B3: Datum | C3: Beschreibung | G3: Netto | H3: MwSt. | I3: Summe
A4: 1 | B4: 2016-02-01 | C4: Artikel Z / Rechnung XY | G4: 100.00 € | H4: 19.00 € | I4: =H4+G4 -> 119.00 €
A23: Summe: | G23: =SUM(G4:G22) -> 100.00 € | H23: =SUM(H4:H22) -> 19.00 € | I23: =SUM(I4:I22) -> 119.00 €

Sheet März
A1: EINNAHMENÜBERSICHT
A2: 2016 | F2: MÄRZ
A3: Nr. | B3: Datum | C3: Beschreibung | G3: Netto | H3: MwSt. | I3: Summe
A4: 1 | B4: 2016-03-01 | C4: Artikel Z / Rechnung XY | G4: 123.00 € | H4: 23.37 € | I4: =H4+G4 -> 146.37 €
A23: Summe: | G23: =SUM(G4:G22) -> 123.00 € | H23: =SUM(H4:H22) -> 23.37 € | I23: =SUM(I4:I22) -> 146.37 €

Sheet April
A1: EINNAHMENÜBERSICHT
A2: 2016 | F2: APRIL
A3: Nr. | B3: Datum | C3: Beschreibung | G3: Netto | H3: MwSt. | I3: Summe
A4: 1 | B4: 2016-04-01 | C4: Artikel Z / Rechnung XY | G4: 100.00 € | H4: 19.00 € | I4: =H4+G4 -> 119.00 €
A23: Summe: | G23: =SUM(G4:G22) -> 100.00 € | H23: =SUM(H4:H22) -> 19.00 € | I23: =SUM(I4:I22) -> 119.00 €

Sheet Mai
A1: EINNAHMENÜBERSICHT
A2: 2016 | F2: MAI
A3: Nr. | B3: Datum | C3: Beschreibung | G3: Netto | H3: MwSt. | I3: Summe
A4: 1 | B4: 2016-05-01 | C4: Artikel Z / Rechnung XY | G4: 123.00 € | H4: 23.37 € | I4: =H4+G4 -> 146.37 €
A23: Summe: | G23: =SUM(G4:G22) -> 123.00 € | H23: =SUM(H4:H22) -> 23.37 € | I23: =SUM(I4:I22) -> 146.37 €

Sheet Juni
A1: EINNAHMENÜBERSICHT
A2: 2016 | F2: JUNI
A3: Nr. | B3: Datum | C3: Beschreibung | G3: Netto | H3: MwSt. | I3: Summe
A4: 1 | B4: 2016-06-01 | C4: Artikel Z / Rechnung XY | G4: 200.00 € | H4: 38.00 € | I4: =H4+G4 -> 238.00 €
A23: Summe: | G23: =SUM(G4:G22) -> 200.00 € | H23: =SUM(H4:H22) -> 38.00 € | I23: =SUM(I4:I22) -> 238.00 €

Sheet Juli
A1: EINNAHMENÜBERSICHT
A2: 2016 | F2: JULI
A3: Nr. | B3: Datum | C3: Beschreibung | G3: Netto | H3: MwSt. | I3: Summe
A4: 1 | B4: 2016-07-01 | C4: Artikel Z / Rechnung XY | G4: 123.00 € | H4: 23.37 € | I4: =H4+G4 -> 146.37 €
A23: Summe: | G23: =SUM(G4:G22) -> 123.00 € | H23: =SUM(H4:H22) -> 23.37 € | I23: =SUM(I4:I22) -> 146.37 €

Sheet August
A1: EINNAHMENÜBERSICHT
A2: 2016 | F2: AUGUST
A3: Nr. | B3: Datum | C3: Beschreibung | G3: Netto | H3: MwSt. | I3: Summe
A4: 1 | B4: 2016-08-01 | C4: Artikel Z / Rechnung XY | G4: 400.00 € | H4: 76.00 € | I4: =H4+G4 -> 476.00 €
A23: Summe: | G23: =SUM(G4:G22) -> 400.00 € | H23: =SUM(H4:H22) -> 76.00 € | I23: =SUM(I4:I22) -> 476.00 €

Sheet September
A1: EINNAHMENÜBERSICHT
A2: 2016 | F2: SEPTEMBER
A3: Nr. | B3: Datum | C3: Beschreibung | G3: Netto | H3: MwSt. | I3: Summe
A4: 1 | B4: 2016-09-01 | C4: Artikel Z / Rechnung XY | G4: 123.00 € | H4: 23.37 € | I4: =H4+G4 -> 146.37 €
A23: Summe: | G23: =SUM(G4:G22) -> 123.00 € | H23: =SUM(H4:H22) -> 23.37 € | I23: =SUM(I4:I22) -> 146.37 €

Sheet Oktober
A1: EINNAHMENÜBERSICHT
A2: 2016 | F2: OKTOBER
A3: Nr. | B3: Datum | C3: Beschreibung | G3: Netto | H3: MwSt. | I3: Summe
A4: 1 | B4: 2016-10-01 | C4: Artikel Z / Rechnung XY | G4: 100.00 € | H4: 19.00 € | I4: =H4+G4 -> 119.00 €
A23: Summe: | G23: =SUM(G4:G22) -> 100.00 € | H23: =SUM(H4:H22) -> 19.00 € | I23: =SUM(I4:I22) -> 119.00 €

Sheet November
A1: EINNAHMENÜBERSICHT
A2: 2016 | F2: NOVEMBER
A3: Nr. | B3: Datum | C3: Beschreibung | G3: Netto | H3: MwSt. | I3: Summe
A4: 1 | B4: 2016-11-01 | C4: Artikel Z / Rechnung XY | G4: 123.00 € | H4: 23.37 € | I4: =H4+G4 -> 146.37 €
A23: Summe: | G23: =SUM(G4:G22) -> 123.00 € | H23: =SUM(H4:H22) -> 23.37 € | I23: =SUM(I4:I22) -> 146.37 €

Sheet Dezember
A1: EINNAHMENÜBERSICHT
A2: 2016 | F2: DEZEMBER
A3: Nr. | B3: Datum | C3: Beschreibung | G3: Netto | H3: MwSt. | I3: Summe
A4: 1 | B4: 2016-12-01 | C4: Artikel Z / Rechnung XY | G4: 200.00 € | H4: 38.00 € | I4: =H4+G4 -> 238.00 €
A23: Summe: | G23: =SUM(G4:G22) -> 200.00 € | H23: =SUM(H4:H22) -> 38.00 € | I23: =SUM(I4:I22) -> 238.00 €
